{"text_format":"1","workbook":"xlsx","n_sheets":2,"sheets":["Base","Récap"],"not_rendered":{"charts":0,"images":0,"macros":1,"external_links":0,"defined_names":0,"comments":0,"pivot_tables":0},"unopened":[],"bounds":{"document_bytes":16777216,"sheet_cells":100000,"rows_first":2000,"rows_last":500,"rows_between":2000,"halvings":0,"cell_chars":16384,"cell_head_chars":4096},"cells_cut":0,"cells_raw":0,"read":"whole","date_system":"1900"}

{"sheet":"Base","index":0,"n_rows":9,"n_cols":38,"rows_kept":9,"cut":false,"hidden":false,"merged":[]}
["Entreprise","Noms ","Adresse","Telephone","Adresse mail","Date","Origine du contact","Commercial affécté","Code APE","CA","Resultat","Effectif","EBE","Projet","LP","Site TC","Site SV","Tel","Mail","Geotruc","Mailing","ML","CG","JM","FS","PS","Premier RDV obtenu","Oui","Non","Date du rappel","Commentaire","Montant du 1er chiffrage","Nb AVP","Nb RDV","Volume horaire","Montant à la signature","% Marge brute","Marge brute"]
["Nicolas",null,null,null,null,null,null,"CG",null,null,null,null,null,null,null,null,null,null,null,{"$f":"IF($G2=\"Geolink\",1,\"\")","v":""},{"$f":"IF($G2=\"Mailing\",1,\"\")","v":""},{"$f":"IF($H2=\"ML\",1,\"\")","v":""},{"$f":"IF($H2=\"CG\",1,\"\")","v":1},{"$f":"IF($H2=\"JM\",1,\"\")","v":""},{"$f":"IF($H2=\"FS\",1,\"\")","v":""},{"$f":"IF($H2=\"PS\",1,\"\")","v":""}]
["Jack",null,null,null,null,null,null,"CG",null,null,null,null,null,null,null,null,null,null,null,"","","",1,"","",""]
["Mickey",null,null,null,null,null,null,"CG",null,null,null,null,null,null,null,null,null,null,null,"","","",1,"","",""]
["Boby",null,null,null,null,null,null,"CG",null,null,null,null,null,null,null,null,null,null,null,"","","",1,"","",""]
["Mika",null,null,null,null,null,null,"CG",null,null,null,null,null,null,null,null,null,null,null,"","","",1,"","",""]
["Momo",null,null,null,null,null,null,"ML",null,null,null,null,null,null,null,null,null,null,null,"","",1,"","","",""]
["MAMA",null,null,null,null,null,null,"CG",null,null,null,null,null,null,null,null,null,null,null,"","","",1,"","",""]
["MIMI",null,null,null,null,null,null,"JM",null,null,null,null,null,null,null,null,null,null,null,"","","","",1,"",""]

{"sheet":"Récap","index":1,"n_rows":7,"n_cols":17,"rows_kept":7,"cut":false,"hidden":false,"merged":[]}
[null,null,"LP","Site TC","Site SV","Tel","Mail","Geotruc","Mailing","Total",null,null,"Critère","En cours","Stand by","Abandon","Signé"]
[null,"ML",{"$f":"SUMIFS(Base!O:O,Base!$V:$V,1)","v":0},{"$f":"SUMIFS(Base!P:P,Base!$V:$V,1)","v":0},{"$f":"SUMIFS(Base!Q:Q,Base!$V:$V,1)","v":0},{"$f":"SUMIFS(Base!R:R,Base!$V:$V,1)","v":0},{"$f":"SUMIFS(Base!S:S,Base!$V:$V,1)","v":0},{"$f":"SUMIFS(Base!T:T,Base!$V:$V,1)","v":0},{"$f":"SUMIFS(Base!U:U,Base!$V:$V,1)","v":0},{"$f":"SUM(C2:I2)","v":0}]
[null,"CG",{"$f":"SUMIFS(Base!O:O,Base!$W:$W,1)","v":0},{"$f":"SUMIFS(Base!P:P,Base!$W:$W,1)","v":0},{"$f":"SUMIFS(Base!Q:Q,Base!$W:$W,1)","v":0},{"$f":"SUMIFS(Base!R:R,Base!$W:$W,1)","v":0},{"$f":"SUMIFS(Base!S:S,Base!$W:$W,1)","v":0},{"$f":"SUMIFS(Base!T:T,Base!$W:$W,1)","v":0},{"$f":"SUMIFS(Base!U:U,Base!$W:$W,1)","v":0},{"$f":"SUM(C3:I3)","v":0}]
[null,"JM",{"$f":"SUMIFS(Base!O:O,Base!$X:$X,1)","v":0},{"$f":"SUMIFS(Base!P:P,Base!$X:$X,1)","v":0},{"$f":"SUMIFS(Base!Q:Q,Base!$X:$X,1)","v":0},{"$f":"SUMIFS(Base!R:R,Base!$X:$X,1)","v":0},{"$f":"SUMIFS(Base!S:S,Base!$X:$X,1)","v":0},{"$f":"SUMIFS(Base!T:T,Base!$X:$X,1)","v":0},{"$f":"SUMIFS(Base!U:U,Base!$X:$X,1)","v":0},0]
[null,"FS",{"$f":"SUMIFS(Base!O:O,Base!$Y:$Y,1)","v":0},{"$f":"SUMIFS(Base!P:P,Base!$Y:$Y,1)","v":0},{"$f":"SUMIFS(Base!Q:Q,Base!$Y:$Y,1)","v":0},{"$f":"SUMIFS(Base!R:R,Base!$Y:$Y,1)","v":0},{"$f":"SUMIFS(Base!S:S,Base!$Y:$Y,1)","v":0},{"$f":"SUMIFS(Base!T:T,Base!$Y:$Y,1)","v":0},{"$f":"SUMIFS(Base!U:U,Base!$Y:$Y,1)","v":0},0]
[null,"PS",{"$f":"SUMIFS(Base!O:O,Base!$Z:$Z,1)","v":0},{"$f":"SUMIFS(Base!P:P,Base!$Z:$Z,1)","v":0},{"$f":"SUMIFS(Base!Q:Q,Base!$Z:$Z,1)","v":0},{"$f":"SUMIFS(Base!R:R,Base!$Z:$Z,1)","v":0},{"$f":"SUMIFS(Base!S:S,Base!$Z:$Z,1)","v":0},{"$f":"SUMIFS(Base!T:T,Base!$Z:$Z,1)","v":0},{"$f":"SUMIFS(Base!U:U,Base!$Z:$Z,1)","v":0},0]
[null,"Total",{"$f":"SUM(C2:C6)","v":0},0,0,0,0,0,0,{"$f":"SUM(J2:J6)","v":0}]